[Event "*** Titled Tuesday Blitz"]
[Site "Chess.com"]
[Date "2018.10.02"]
[Round "7"]
[White "wonderfultime"]
[Black "David_Paravyan"]
[Result "0-1"]
[WhiteElo "2850"]
[BlackElo "2824"]
[TimeControl "180+2"]
[EndTime "14:35:03 PDT"]
[Termination "David_Paravyan won by resignation"]

1. d4 {[%clk 0:03:01.9]} 1... Nf6 {[%clk 0:02:57.2]} 2. Nf3 {[%clk 0:03:03]}
2... g6 {[%clk 0:02:41.1]} 3. Bg5 {[%clk 0:03:03.2]} 3... Bg7 {[%clk 0:02:41.9]}
4. Nbd2 {[%clk 0:03:04.5]} 4... O-O {[%clk 0:02:42.4]} 5. c3 {[%clk 0:03:05.4]}
5... d6 {[%clk 0:02:43.6]} 6. e4 {[%clk 0:03:06.5]} 6... Nc6 {[%clk 0:02:39.3]}
7. Bd3 {[%clk 0:03:05.4]} 7... e5 {[%clk 0:02:33.1]} 8. O-O {[%clk 0:03:04.7]}
8... h6 {[%clk 0:02:33.7]} 9. Bh4 {[%clk 0:02:39.6]} 9... Qe8 {[%clk 0:02:33.9]}
10. Re1 {[%clk 0:02:39.1]} 10... Nh5 {[%clk 0:02:33.1]} 11. dxe5 {[%clk
0:02:23.5]} 11... dxe5 {[%clk 0:02:18.4]} 12. Qc2 {[%clk 0:02:15.4]} 12... Nf4
{[%clk 0:02:10.5]} 13. Bg3 {[%clk 0:02:15.7]} 13... Nxd3 {[%clk 0:02:11.1]} 14.
Qxd3 {[%clk 0:02:12.7]} 14... Be6 {[%clk 0:02:11.7]} 15. Qc2 {[%clk 0:02:02]}
15... Rd8 {[%clk 0:02:00.9]} 16. Nf1 {[%clk 0:01:58]} 16... Bc4 {[%clk
0:01:41.4]} 17. Rad1 {[%clk 0:01:57.6]} 17... Qe6 {[%clk 0:01:37.8]} 18. b3
{[%clk 0:01:57.4]} 18... Ba6 {[%clk 0:01:34.4]} 19. Ne3 {[%clk 0:01:27.8]} 19...
Ne7 {[%clk 0:01:33.9]} 20. c4 {[%clk 0:01:23.1]} 20... c6 {[%clk 0:01:28.6]} 21.
h3 {[%clk 0:01:18.2]} 21... Kh7 {[%clk 0:00:59.2]} 22. Bh4 {[%clk 0:01:14.2]}
22... f6 {[%clk 0:00:51.8]} 23. Qc3 {[%clk 0:01:09.7]} 23... b6 {[%clk 0:00:46]}
24. Qc1 {[%clk 0:01:03.4]} 24... Bb7 {[%clk 0:00:43.9]} 25. Qa3 {[%clk
0:01:04.7]} 25... a6 {[%clk 0:00:40.9]} 26. Qb4 {[%clk 0:01:02.2]} 26... c5
{[%clk 0:00:41.8]} 27. Qc3 {[%clk 0:00:57.8]} 27... Bxe4 {[%clk 0:00:42.1]} 28.
Nd2 {[%clk 0:00:44.5]} 28... Bb7 {[%clk 0:00:41.9]} 29. Qc2 {[%clk 0:00:41.2]}
29... Nc6 {[%clk 0:00:42.4]} 30. Ne4 {[%clk 0:00:25.9]} 30... Rxd1 {[%clk
0:00:42.8]} 31. Rxd1 {[%clk 0:00:14.3]} 31... Nd4 {[%clk 0:00:43.9]} 32. Qb1
{[%clk 0:00:15.6]} 32... f5 {[%clk 0:00:45.2]} 33. Nc3 {[%clk 0:00:16.9]} 33...
f4 {[%clk 0:00:37.2]} 34. Ned5 {[%clk 0:00:12.7]} 34... f3 {[%clk 0:00:38.1]}
35. g4 {[%clk 0:00:09.7]} 35... b5 {[%clk 0:00:29.6]} 36. Qe4 {[%clk 0:00:05.6]}
36... b4 {[%clk 0:00:26.3]} 37. Na4 {[%clk 0:00:06.9]} 37... Qd6 {[%clk
0:00:25.6]} 38. Kh1 {[%clk 0:00:08.2]} 38... Rf4 {[%clk 0:00:21.2]} 39. Qe3
{[%clk 0:00:09.4]} 39... Bxd5 {[%clk 0:00:21.3]} 40. cxd5 {[%clk 0:00:11.3]}
40... Qxd5 {[%clk 0:00:23.2]} 41. Rc1 {[%clk 0:00:10.9]} 41... Re4 {[%clk
0:00:18.5]} 42. Qd3 {[%clk 0:00:12.3]} 42... Re2 {[%clk 0:00:14.3]} 43. Rxc5
{[%clk 0:00:13]} 43... e4 {[%clk 0:00:11.4]} 44. Qxa6 {[%clk 0:00:09.6]} 44...
Re1+ {[%clk 0:00:11.2]} 45. Kh2 {[%clk 0:00:10.5]} 45... Be5+ {[%clk 0:00:10.3]}
46. Bg3 {[%clk 0:00:11.9]} 46... Bxg3+ {[%clk 0:00:11.6]} 47. fxg3 {[%clk
0:00:13.8]} 47... Re2+ {[%clk 0:00:11.5]} 48. Kg1 {[%clk 0:00:10.5]} 48... Qf7
{[%clk 0:00:08.7]} 0-1

[Event "*** Titled Tuesday Blitz"]
[Site "Chess.com"]
[Date "2018.10.02"]
[Round "7"]
[White "topotun"]
[Black "BasilSmash"]
[Result "1-0"]
[WhiteElo "2692"]
[BlackElo "2400"]
[TimeControl "180+2"]
[EndTime "14:35:07 PDT"]
[Termination "topotun won by checkmate"]

1. e4 {[%clk 0:03:01.9]} 1... c6 {[%clk 0:03:00.2]} 2. d4 {[%clk 0:03:02.8]}
2... d5 {[%clk 0:03:02.1]} 3. Nd2 {[%clk 0:03:04.3]} 3... dxe4 {[%clk
0:03:02.2]} 4. Nxe4 {[%clk 0:03:06.2]} 4... Bf5 {[%clk 0:03:03.3]} 5. Ng3 {[%clk
0:03:07.4]} 5... Bg6 {[%clk 0:03:04.5]} 6. h4 {[%clk 0:03:08.9]} 6... h6 {[%clk
0:03:05.2]} 7. Nf3 {[%clk 0:03:10.2]} 7... e6 {[%clk 0:03:06.4]} 8. h5 {[%clk
0:03:11.1]} 8... Bh7 {[%clk 0:03:07.3]} 9. Bd3 {[%clk 0:03:13]} 9... Bxd3 {[%clk
0:03:07.9]} 10. Qxd3 {[%clk 0:03:14.9]} 10... Nf6 {[%clk 0:03:09.2]} 11. Bd2
{[%clk 0:03:15]} 11... Be7 {[%clk 0:03:09.8]} 12. O-O-O {[%clk 0:03:14]} 12...
O-O {[%clk 0:03:10.3]} 13. Kb1 {[%clk 0:03:14.1]} 13... c5 {[%clk 0:03:08.5]}
14. Ne4 {[%clk 0:03:10.6]} 14... Nc6 {[%clk 0:02:48.4]} 15. Bc3 {[%clk
0:02:58.4]} 15... cxd4 {[%clk 0:02:27.4]} 16. Nxd4 {[%clk 0:03:00.3]} 16... Nxd4
{[%clk 0:02:27]} 17. Bxd4 {[%clk 0:03:00.3]} 17... Rc8 {[%clk 0:01:53]} 18. Qg3
{[%clk 0:02:32.1]} 18... Qc7 {[%clk 0:01:50.1]} 19. Bxf6 {[%clk 0:01:54.9]}
19... Qxg3 {[%clk 0:01:46.9]} 20. fxg3 {[%clk 0:01:55.8]} 20... Bxf6 {[%clk
0:01:37]} 21. Rd7 {[%clk 0:01:55.5]} 21... Rb8 {[%clk 0:01:04.2]} 22. c3 {[%clk
0:01:42.4]} 22... Rfd8 {[%clk 0:00:58.6]} 23. Rhd1 {[%clk 0:01:38.2]} 23... Rxd7
{[%clk 0:00:58.2]} 24. Rxd7 {[%clk 0:01:40.1]} 24... Be5 {[%clk 0:00:59.2]} 25.
g4 {[%clk 0:01:38.9]} 25... Kf8 {[%clk 0:00:59.3]} 26. Nc5 {[%clk 0:01:26.7]}
26... b6 {[%clk 0:00:47.9]} 27. Nd3 {[%clk 0:01:27.1]} 27... Bg3 {[%clk
0:00:14.6]} 28. Rxa7 {[%clk 0:01:27]} 28... Ke8 {[%clk 0:00:16.1]} 29. Kc2
{[%clk 0:01:25.8]} 29... Bd6 {[%clk 0:00:16.5]} 30. a4 {[%clk 0:01:26.8]} 30...
Be7 {[%clk 0:00:07.9]} 31. Ne5 {[%clk 0:01:25.9]} 31... Rc8 {[%clk 0:00:06.2]}
32. Rb7 {[%clk 0:01:19.1]} 32... Rc5 {[%clk 0:00:06.2]} 33. Nf3 {[%clk
0:01:18.4]} 33... Ra5 {[%clk 0:00:06.8]} 34. b3 {[%clk 0:01:16.1]} 34... Bd8
{[%clk 0:00:07]} 35. Kb2 {[%clk 0:01:10.6]} 35... Rd5 {[%clk 0:00:07.4]} 36. Kc2
{[%clk 0:01:12.1]} 36... Rd7 {[%clk 0:00:05.3]} 37. Rxd7 {[%clk 0:01:11.5]}
37... Kxd7 {[%clk 0:00:07.2]} 38. Ne5+ {[%clk 0:01:13.2]} 38... Ke8 {[%clk
0:00:08.2]} 39. Kd3 {[%clk 0:01:13.9]} 39... Bc7 {[%clk 0:00:09.5]} 40. Kd4
{[%clk 0:01:08.7]} 40... Bxe5+ {[%clk 0:00:10]} 41. Kxe5 {[%clk 0:01:09.7]}
41... Kd7 {[%clk 0:00:11.9]} 42. b4 {[%clk 0:01:08.2]} 42... f6+ {[%clk
0:00:12.9]} 43. Kd4 {[%clk 0:01:08.9]} 43... Kd6 {[%clk 0:00:13.8]} 44. c4
{[%clk 0:01:10.4]} 44... e5+ {[%clk 0:00:14.7]} 45. Ke4 {[%clk 0:01:11.7]} 45...
Kc6 {[%clk 0:00:14.8]} 46. Kf5 {[%clk 0:01:02.1]} 46... Kd6 {[%clk 0:00:15.5]}
47. Ke4 {[%clk 0:00:49.8]} 47... Kc6 {[%clk 0:00:15.6]} 48. Kd3 {[%clk
0:00:50.8]} 48... Kd6 {[%clk 0:00:16.6]} 49. Kc3 {[%clk 0:00:51.1]} 49... Kc6
{[%clk 0:00:17.6]} 50. Kd3 {[%clk 0:00:45.9]} 50... Kd6 {[%clk 0:00:18.2]} 51.
b5 {[%clk 0:00:37.6]} 51... Kc5 {[%clk 0:00:18.4]} 52. Kc3 {[%clk 0:00:39]}
52... Kd6 {[%clk 0:00:08.4]} 53. Kb4 {[%clk 0:00:40.1]} 53... Kc7 {[%clk
0:00:07]} 54. c5 {[%clk 0:00:39.1]} 54... bxc5+ {[%clk 0:00:08.9]} 55. Kxc5
{[%clk 0:00:40.9]} 55... Kb7 {[%clk 0:00:10.1]} 56. a5 {[%clk 0:00:42.1]} 56...
Kc7 {[%clk 0:00:11.3]} 57. b6+ {[%clk 0:00:43]} 57... Kb7 {[%clk 0:00:12.5]} 58.
Kb5 {[%clk 0:00:44.6]} 58... Kb8 {[%clk 0:00:13.5]} 59. a6 {[%clk 0:00:46.5]}
59... Kc8 {[%clk 0:00:12.3]} 60. Kc6 {[%clk 0:00:47.4]} 60... e4 {[%clk
0:00:13.5]} 61. b7+ {[%clk 0:00:49.3]} 61... Kb8 {[%clk 0:00:14.6]} 62. Kb6
{[%clk 0:00:50.1]} 62... e3 {[%clk 0:00:16.5]} 63. g3 {[%clk 0:00:50.8]} 63...
e2 {[%clk 0:00:16.9]} 64. g5 {[%clk 0:00:51.9]} 64... hxg5 {[%clk 0:00:16.7]}
65. h6 {[%clk 0:00:51]} 65... e1=Q {[%clk 0:00:14.3]} 66. a7# {[%clk 0:00:51.4]}
1-0

[Event "*** Titled Tuesday Blitz"]
[Site "Chess.com"]
[Date "2018.10.02"]
[Round "7"]
[White "Didici"]
[Black "BocharovD"]
[Result "0-1"]
[WhiteElo "2626"]
[BlackElo "2789"]
[TimeControl "180+2"]
[EndTime "14:35:15 PDT"]
[Termination "BocharovD won by checkmate"]

1. d4 {[%clk 0:02:58]} 1... Nf6 {[%clk 0:02:59.7]} 2. c4 {[%clk 0:02:58.4]} 2...
e6 {[%clk 0:03:01.2]} 3. Nf3 {[%clk 0:02:54.6]} 3... d5 {[%clk 0:03:01.6]} 4.
Nc3 {[%clk 0:02:53.4]} 4... c6 {[%clk 0:03:01.2]} 5. g3 {[%clk 0:02:53.1]} 5...
Nbd7 {[%clk 0:03:00.6]} 6. Bg2 {[%clk 0:02:54.5]} 6... Be7 {[%clk 0:03:00.7]} 7.
O-O {[%clk 0:02:56.4]} 7... dxc4 {[%clk 0:03:01.6]} 8. a4 {[%clk 0:02:55]} 8...
O-O {[%clk 0:02:58.9]} 9. e4 {[%clk 0:02:54.6]} 9... Re8 {[%clk 0:02:56.4]} 10.
Bf4 {[%clk 0:02:52]} 10... Nh5 {[%clk 0:02:57.4]} 11. Be3 {[%clk 0:02:52.7]}
11... Nhf6 {[%clk 0:02:58.6]} 12. Nd2 {[%clk 0:02:52.8]} 12... e5 {[%clk
0:02:55.8]} 13. Nxc4 {[%clk 0:02:28.3]} 13... exd4 {[%clk 0:02:56.1]} 14. Bxd4
{[%clk 0:02:30.2]} 14... Nf8 {[%clk 0:02:56.4]} 15. e5 {[%clk 0:02:25.1]} 15...
Ng4 {[%clk 0:02:53]} 16. Ne4 {[%clk 0:02:21]} 16... Nh6 {[%clk 0:02:38.2]} 17.
Bc3 {[%clk 0:02:00]} 17... Be6 {[%clk 0:02:34.4]} 18. Ncd6 {[%clk 0:01:59.1]}
18... Bxd6 {[%clk 0:02:34.5]} 19. Nxd6 {[%clk 0:02:01]} 19... Re7 {[%clk
0:02:35.8]} 20. Qc2 {[%clk 0:01:57]} 20... Rd7 {[%clk 0:02:32.2]} 21. Rfd1
{[%clk 0:01:56.9]} 21... Ng6 {[%clk 0:02:33.2]} 22. Nxb7 {[%clk 0:01:54.9]}
22... Rxd1+ {[%clk 0:02:30.1]} 23. Rxd1 {[%clk 0:01:56.8]} 23... Qg5 {[%clk
0:02:30.2]} 24. Bxc6 {[%clk 0:01:43.3]} 24... Ng4 {[%clk 0:02:25.7]} 25. f4
{[%clk 0:01:35.3]} 25... Qe7 {[%clk 0:02:21.5]} 26. Qe2 {[%clk 0:01:16.6]} 26...
Rb8 {[%clk 0:02:16.4]} 27. Nd6 {[%clk 0:01:13.1]} 27... Qc7 {[%clk 0:02:16.9]}
28. Bf3 {[%clk 0:01:09.8]} 28... Nh6 {[%clk 0:02:00.1]} 29. Nb5 {[%clk
0:01:10.3]} 29... Qe7 {[%clk 0:01:57.3]} 30. Nd4 {[%clk 0:01:06.2]} 30... Rc8
{[%clk 0:01:49.2]} 31. Kg2 {[%clk 0:01:05.2]} 31... Nf5 {[%clk 0:01:46.6]} 32.
Nxf5 {[%clk 0:01:05]} 32... Bxf5 {[%clk 0:01:47.7]} 33. Rd6 {[%clk 0:01:04.6]}
33... Nf8 {[%clk 0:01:41.6]} 34. Qd2 {[%clk 0:01:01.7]} 34... Be6 {[%clk
0:01:40.2]} 35. Be4 {[%clk 0:00:54.7]} 35... g6 {[%clk 0:01:30.9]} 36. Bf3
{[%clk 0:00:47.5]} 36... h5 {[%clk 0:01:27.7]} 37. b4 {[%clk 0:00:46.9]} 37...
Rc4 {[%clk 0:01:23.8]} 38. Rc6 {[%clk 0:00:43.1]} 38... h4 {[%clk 0:00:58.9]}
39. Rxc4 {[%clk 0:00:42.5]} 39... Bxc4 {[%clk 0:01:00.4]} 40. Qd4 {[%clk
0:00:42.3]} 40... Be6 {[%clk 0:01:01.1]} 41. Qd6 {[%clk 0:00:30]} 41... Qe8
{[%clk 0:01:01]} 42. b5 {[%clk 0:00:27.7]} 42... Qc8 {[%clk 0:01:00.1]} 43. Bc6
{[%clk 0:00:27.9]} 43... Nd7 {[%clk 0:00:54.6]} 44. Bb4 {[%clk 0:00:27.4]} 44...
Nb6 {[%clk 0:00:54.5]} 45. a5 {[%clk 0:00:27.1]} 45... Nc4 {[%clk 0:00:53.7]}
46. Qd4 {[%clk 0:00:28]} 46... a6 {[%clk 0:00:53.3]} 47. Kf2 {[%clk 0:00:24.8]}
47... h3 {[%clk 0:00:47.4]} 48. Be7 {[%clk 0:00:21.5]} 48... axb5 {[%clk
0:00:34.4]} 49. Bxb5 {[%clk 0:00:23.4]} 49... Qb7 {[%clk 0:00:19.9]} 50. Bxc4
{[%clk 0:00:17.6]} 50... Qxe7 {[%clk 0:00:20.6]} 51. Bxe6 {[%clk 0:00:18]} 51...
Qxe6 {[%clk 0:00:22.5]} 52. Qc5 {[%clk 0:00:17.8]} 52... Qa2+ {[%clk 0:00:22.9]}
53. Ke3 {[%clk 0:00:18.1]} 53... Qxh2 {[%clk 0:00:23.9]} 54. a6 {[%clk
0:00:18.3]} 54... Qxg3+ {[%clk 0:00:24.6]} 55. Ke4 {[%clk 0:00:19.2]} 55... Qg2+
{[%clk 0:00:25.2]} 56. Kd4 {[%clk 0:00:20]} 56... h2 {[%clk 0:00:27.1]} 57. a7
{[%clk 0:00:20.8]} 57... h1=Q {[%clk 0:00:27.7]} 58. Qc8+ {[%clk 0:00:22.5]}
58... Kg7 {[%clk 0:00:28.7]} 59. Kc5 {[%clk 0:00:20.5]} 59... Qd5+ {[%clk
0:00:29.3]} 60. Kb6 {[%clk 0:00:21.5]} 60... Qb1+ {[%clk 0:00:29.6]} 61. Kc7
{[%clk 0:00:22.6]} 61... Qc2+ {[%clk 0:00:30.7]} 62. Kb8 {[%clk 0:00:23]} 62...
Qcb3+ {[%clk 0:00:31.4]} 63. Kc7 {[%clk 0:00:24.3]} 63... Qbc4+ {[%clk
0:00:32.6]} 64. Kb8 {[%clk 0:00:25.9]} 64... Qcb5+ {[%clk 0:00:33.7]} 65. Kc7
{[%clk 0:00:27.5]} 65... Qbc5+ {[%clk 0:00:35]} 66. Kb8 {[%clk 0:00:28.9]} 66...
Qb6+ {[%clk 0:00:36.2]} 67. Qb7 {[%clk 0:00:30.5]} 67... Qbxb7# {[%clk
0:00:37.1]} 0-1

[Event "*** Titled Tuesday Blitz"]
[Site "Chess.com"]
[Date "2018.10.02"]
[Round "7"]
[White "aquaticpineapples"]
[Black "andrzej"]
[Result "0-1"]
[WhiteElo "2032"]
[BlackElo "2226"]
[TimeControl "180+2"]
[EndTime "14:35:15 PDT"]
[Termination "andrzej won by resignation"]

1. d4 {[%clk 0:03:01.9]} 1... Nf6 {[%clk 0:03:00]} 2. Nf3 {[%clk 0:03:02.3]}
2... b6 {[%clk 0:03:00.3]} 3. Nbd2 {[%clk 0:03:02.5]} 3... Bb7 {[%clk
0:03:00.3]} 4. e3 {[%clk 0:03:03.3]} 4... e6 {[%clk 0:02:58.7]} 5. Bd3 {[%clk
0:03:03.8]} 5... c5 {[%clk 0:02:54.6]} 6. O-O {[%clk 0:03:02.9]} 6... Be7 {[%clk
0:02:54.8]} 7. b3 {[%clk 0:03:03.2]} 7... O-O {[%clk 0:02:51.4]} 8. Bb2 {[%clk
0:03:03.9]} 8... Nc6 {[%clk 0:02:48.1]} 9. a3 {[%clk 0:03:03.5]} 9... cxd4
{[%clk 0:02:47.5]} 10. exd4 {[%clk 0:03:05.4]} 10... d5 {[%clk 0:02:48.3]} 11.
Ne5 {[%clk 0:02:58.6]} 11... Rc8 {[%clk 0:02:45]} 12. Qe2 {[%clk 0:02:52.7]}
12... Qc7 {[%clk 0:02:29.9]} 13. f4 {[%clk 0:02:50.1]} 13... Rfe8 {[%clk
0:02:16.5]} 14. Rf3 {[%clk 0:02:44.8]} 14... Bf8 {[%clk 0:02:16.4]} 15. Rh3
{[%clk 0:02:41.8]} 15... g6 {[%clk 0:02:16.4]} 16. Qf2 {[%clk 0:02:13.2]} 16...
Bg7 {[%clk 0:01:55.7]} 17. Ndf3 {[%clk 0:01:59]} 17... Ne4 {[%clk 0:01:15]} 18.
Qh4 {[%clk 0:01:54.5]} 18... h5 {[%clk 0:01:14.7]} 19. g4 {[%clk 0:01:48.8]}
19... Nxe5 {[%clk 0:01:00.4]} 20. fxe5 {[%clk 0:01:44.2]} 20... hxg4 {[%clk
0:00:45.7]} 21. Qxg4 {[%clk 0:01:33.1]} 21... Qe7 {[%clk 0:00:46.4]} 22. Bc1
{[%clk 0:01:26.1]} 22... Rc3 {[%clk 0:00:31.9]} 23. Ng5 {[%clk 0:01:02.9]} 23...
Qc7 {[%clk 0:00:29.6]} 24. Bf4 {[%clk 0:00:29.4]} 24... Rxc2 {[%clk 0:00:23.4]}
25. Bxc2 {[%clk 0:00:29.9]} 25... Qxc2 {[%clk 0:00:25.3]} 26. Rf1 {[%clk
0:00:26.8]} 26... Qb2 {[%clk 0:00:16.5]} 27. Be3 {[%clk 0:00:24.3]} 27... Nxg5
{[%clk 0:00:11.7]} 28. Qxg5 {[%clk 0:00:22.5]} 28... Qxb3 {[%clk 0:00:10.7]} 29.
Qh4 {[%clk 0:00:22]} 29... Qc2 {[%clk 0:00:07.5]} 30. Qh7+ {[%clk 0:00:20.3]}
30... Kf8 {[%clk 0:00:09]} 31. Rhf3 {[%clk 0:00:20.6]} 31... Re7 {[%clk
0:00:07.3]} 32. Bh6 {[%clk 0:00:19.9]} 32... Ke8 {[%clk 0:00:06.3]} 33. Qxg7
{[%clk 0:00:20.2]} 33... Qb2 {[%clk 0:00:03.2]} 34. Qf8+ {[%clk 0:00:15.9]}
34... Kd7 {[%clk 0:00:03.8]} 35. Rxf7 {[%clk 0:00:14.6]} 35... Qxd4+ {[%clk
0:00:04.8]} 36. Kg2 {[%clk 0:00:14.9]} 36... Qg4+ {[%clk 0:00:05.3]} 37. Kh1
{[%clk 0:00:14.9]} 37... d4+ {[%clk 0:00:06.5]} 38. R7f3 {[%clk 0:00:14.3]}
38... Bxf3+ {[%clk 0:00:05.6]} 39. Qxf3 {[%clk 0:00:13.9]} 39... Qxf3+ {[%clk
0:00:05.5]} 40. Rxf3 {[%clk 0:00:15.8]} 40... Kc6 {[%clk 0:00:06.8]} 41. Rd3
{[%clk 0:00:12.8]} 41... Kd5 {[%clk 0:00:07.4]} 42. Kg2 {[%clk 0:00:14.1]} 42...
Ke4 {[%clk 0:00:08.3]} 43. Rd1 {[%clk 0:00:15]} 43... Kxe5 {[%clk 0:00:09]} 44.
Kf3 {[%clk 0:00:15.1]} 44... Rf7+ {[%clk 0:00:09.2]} 45. Kg4 {[%clk 0:00:16]}
45... Kd5 {[%clk 0:00:08.1]} 46. Bf4 {[%clk 0:00:15.9]} 46... e5 {[%clk
0:00:09]} 47. Bg3 {[%clk 0:00:16.4]} 47... e4 {[%clk 0:00:07.1]} 48. Kg5 {[%clk
0:00:16.8]} 48... e3 {[%clk 0:00:08.4]} 49. Kxg6 {[%clk 0:00:17.7]} 49... Rd7
{[%clk 0:00:06.5]} 50. h4 {[%clk 0:00:16.7]} 50... Ke4 {[%clk 0:00:07.6]} 51. h5
{[%clk 0:00:17.5]} 51... e2 {[%clk 0:00:08.9]} 52. Rd2 {[%clk 0:00:17.4]} 52...
d3 {[%clk 0:00:09.5]} 53. h6 {[%clk 0:00:17.7]} 53... Ke3 {[%clk 0:00:11]} 54.
Be1 {[%clk 0:00:18.1]} 54... Rd6+ {[%clk 0:00:11]} 55. Kg7 {[%clk 0:00:19.2]}
55... Rd7+ {[%clk 0:00:12.3]} 56. Kg6 {[%clk 0:00:20.2]} 56... Rd6+ {[%clk
0:00:13.6]} 57. Kg5 {[%clk 0:00:21.1]} 57... Rd5+ {[%clk 0:00:13.9]} 58. Kf6
{[%clk 0:00:21.8]} 58... Rh5 {[%clk 0:00:14]} 59. Kg7 {[%clk 0:00:22.8]} 59...
Rh1 {[%clk 0:00:14.7]} 60. h7 {[%clk 0:00:22.8]} 60... Rxe1 {[%clk 0:00:15.6]}
61. Rxd3+ {[%clk 0:00:22.4]} 61... Kxd3 {[%clk 0:00:15.5]} 62. h8=Q {[%clk
0:00:22.4]} 62... Rg1+ {[%clk 0:00:17.1]} 63. Kf6 {[%clk 0:00:23.1]} 63... e1=Q
{[%clk 0:00:17.1]} 64. Qd8+ {[%clk 0:00:24.2]} 64... Kc2 {[%clk 0:00:17.5]} 65.
Qc7+ {[%clk 0:00:25.3]} 65... Qc3+ {[%clk 0:00:17.5]} 0-1

[Event "*** Titled Tuesday Blitz"]
[Site "Chess.com"]
[Date "2018.10.02"]
[Round "7"]
[White "Alexander_Moskalenko"]
[Black "Korchmar_Vasiliy"]
[Result "1/2-1/2"]
[WhiteElo "2847"]
[BlackElo "2700"]
[TimeControl "180+2"]
[EndTime "14:36:17 PDT"]
[Termination "Game drawn by agreement"]

1. d4 {[%clk 0:03:01.9]} 1... Nf6 {[%clk 0:03:00.7]} 2. Bf4 {[%clk 0:03:02.5]}
2... g6 {[%clk 0:03:00.8]} 3. Nf3 {[%clk 0:03:03.6]} 3... Bg7 {[%clk 0:03:01.5]}
4. Nc3 {[%clk 0:03:04.5]} 4... c5 {[%clk 0:02:55]} 5. d5 {[%clk 0:03:01.5]} 5...
O-O {[%clk 0:02:53.4]} 6. e4 {[%clk 0:03:02.4]} 6... d6 {[%clk 0:02:54.5]} 7. a4
{[%clk 0:02:58]} 7... Bg4 {[%clk 0:02:30.7]} 8. Be2 {[%clk 0:02:57.1]} 8... Nbd7
{[%clk 0:02:25.9]} 9. O-O {[%clk 0:02:49]} 9... a6 {[%clk 0:02:23.9]} 10. h3
{[%clk 0:02:42.6]} 10... Bxf3 {[%clk 0:02:25.1]} 11. Bxf3 {[%clk 0:02:44.5]}
11... Ne5 {[%clk 0:02:25.2]} 12. Be2 {[%clk 0:02:43.6]} 12... e6 {[%clk
0:02:18.1]} 13. dxe6 {[%clk 0:02:40]} 13... fxe6 {[%clk 0:02:20]} 14. Qd2 {[%clk
0:02:26.4]} 14... Qe7 {[%clk 0:02:20.2]} 15. Be3 {[%clk 0:02:14.3]} 15... Rad8
{[%clk 0:02:13.2]} 16. f4 {[%clk 0:02:13.5]} 16... Nc6 {[%clk 0:02:13.8]} 17.
Rae1 {[%clk 0:02:10.8]} 17... Kh8 {[%clk 0:02:10.4]} 18. Bf3 {[%clk 0:02:07.5]}
18... Nb4 {[%clk 0:02:03.2]} 19. Qf2 {[%clk 0:02:03.6]} 19... Nd7 {[%clk
0:01:59]} 20. Re2 {[%clk 0:01:53.4]} 20... Bh6 {[%clk 0:01:29.9]} 21. g3 {[%clk
0:01:38.8]} 21... Bg7 {[%clk 0:01:31]} 22. Kh2 {[%clk 0:01:38.6]} 22... Nc6
{[%clk 0:01:25.8]} 23. Rd2 {[%clk 0:01:30.6]} 23... Nd4 {[%clk 0:01:26.8]} 24.
Bg2 {[%clk 0:01:25.8]} 24... Ne5 {[%clk 0:01:24.3]} 25. b3 {[%clk 0:01:24]}
25... Nec6 {[%clk 0:01:20.9]} 26. Ne2 {[%clk 0:01:23.6]} 26... Nxe2 {[%clk
0:01:17.6]} 27. Qxe2 {[%clk 0:01:25.5]} 27... Nd4 {[%clk 0:01:14.7]} 28. Qd1
{[%clk 0:01:25.7]} 28... e5 {[%clk 0:01:13]} 29. c3 {[%clk 0:01:09.4]} 29... Nc6
{[%clk 0:01:06.7]} 30. f5 {[%clk 0:01:08.7]} 30... gxf5 {[%clk 0:01:04.8]} 31.
Rxf5 {[%clk 0:01:10.6]} 31... Rxf5 {[%clk 0:00:58.1]} 32. exf5 {[%clk
0:01:09.2]} 32... e4 {[%clk 0:00:58]} 33. Rd5 {[%clk 0:00:54.1]} 33... Be5
{[%clk 0:00:48.9]} 34. Bf2 {[%clk 0:00:38.4]} 34... Rg8 {[%clk 0:00:44.3]} 35.
Bxe4 {[%clk 0:00:32.8]} 35... Bxg3+ {[%clk 0:00:42.1]} 36. Bxg3 {[%clk
0:00:34.7]} 36... Qxe4 {[%clk 0:00:43.7]} 37. Rxd6 {[%clk 0:00:36.2]} 37... Qxf5
{[%clk 0:00:38.9]} 38. Qd3 {[%clk 0:00:23.2]} 38... Qxd3 {[%clk 0:00:33.9]} 39.
Rxd3 {[%clk 0:00:24]} 39... Re8 {[%clk 0:00:35.8]} 40. Bd6 {[%clk 0:00:20]}
40... c4 {[%clk 0:00:33]} 41. bxc4 {[%clk 0:00:20.7]} 41... Re4 {[%clk
0:00:34.6]} 42. Bc7 {[%clk 0:00:14.2]} 42... Rxc4 {[%clk 0:00:33.2]} 43. a5
{[%clk 0:00:15.6]} 43... Kg7 {[%clk 0:00:31.1]} 44. Bb6 {[%clk 0:00:16.3]} 44...
Re4 {[%clk 0:00:26.7]} 45. Kg3 {[%clk 0:00:15.5]} 45... Kf6 {[%clk 0:00:22.6]}
46. Rd6+ {[%clk 0:00:16.2]} 46... Re6 {[%clk 0:00:23.2]} 47. Rd7 {[%clk
0:00:17.5]} 47... Re7 {[%clk 0:00:24]} 48. Rd5 {[%clk 0:00:17]} 48... Ke6 {[%clk
0:00:21.4]} 49. Rh5 {[%clk 0:00:18]} 49... Kf6 {[%clk 0:00:22.7]} 50. Kf4 {[%clk
0:00:18.9]} 50... Rd7 {[%clk 0:00:21.3]} 51. Rh6+ {[%clk 0:00:18.7]} 51... Kg7
{[%clk 0:00:22.1]} 52. Re6 {[%clk 0:00:19.8]} 52... Kf7 {[%clk 0:00:22.1]} 53.
Re3 {[%clk 0:00:19.9]} 53... Rd5 {[%clk 0:00:20.8]} 54. Rf3 {[%clk 0:00:21]}
54... Nxa5 {[%clk 0:00:18.3]} 55. Ke4+ {[%clk 0:00:22.4]} 55... Ke6 {[%clk
0:00:18.8]} 56. Bd4 {[%clk 0:00:23.4]} 56... Rh5 {[%clk 0:00:11.9]} 57. Rf6+
{[%clk 0:00:15.7]} 57... Ke7 {[%clk 0:00:13.3]} 58. Rb6 {[%clk 0:00:16.4]} 58...
Rxh3 {[%clk 0:00:09.3]} 59. Bc5+ {[%clk 0:00:17.4]} 59... Kd7 {[%clk 0:00:08.7]}
60. Bb4 {[%clk 0:00:19.3]} 60... Rh4+ {[%clk 0:00:07.1]} 61. Kd3 {[%clk
0:00:18.3]} 61... Rh3+ {[%clk 0:00:04.7]} 62. Ke4 {[%clk 0:00:18.9]} 62... Rh4+
{[%clk 0:00:06]} 63. Kd3 {[%clk 0:00:20]} 63... Rh3+ {[%clk 0:00:05]} 64. Ke4
{[%clk 0:00:17.7]} 64... Rh4+ {[%clk 0:00:03.8]} 65. Kf3 {[%clk 0:00:18.6]}
65... Rh5 {[%clk 0:00:04]} 66. Bxa5 {[%clk 0:00:17.7]} 66... Rxa5 {[%clk
0:00:05.9]} 67. Rxb7+ {[%clk 0:00:19.6]} 67... Kc6 {[%clk 0:00:07.4]} 68. Rxh7
{[%clk 0:00:20.4]} 68... Ra3 {[%clk 0:00:08.7]} 69. Ke2 {[%clk 0:00:21.8]} 69...
Rxc3 {[%clk 0:00:09]} 70. Kd2 {[%clk 0:00:23.3]} 70... Rc5 {[%clk 0:00:09.2]}
71. Rh3 {[%clk 0:00:23.8]} 71... Kb5 {[%clk 0:00:09.9]} 72. Rc3 {[%clk
0:00:25.7]} 1/2-1/2